Cogmind - Beta 11.1 @@@ ROGUE MODE // 2022.07.23 @ 18:29:10 Player: tkc Result: Destroyed by D-53 Grenadier with Mini Grenade Launcher Performance ------------- Evolutions (0) 0 Regions Visited (4) 800 Robots Destroyed (25) 125 Value Destroyed (433) 433 Prototype IDs (23) 460 Alien Tech Used (0) 0 Bonus (441) 441 TOTAL SCORE: 2259 Bonus ------- Follower Combat Kills 141 Aligned with FarCom 300 Cogmind --------- Core Integrity 0/250 Matter 300/300 Energy 125/125 System Corruption 1% Temperature Cool (0) Movement Rolling (110) Ox2 Location -9/Mines Parts ------- > --- POWER (1) -------- Light Ion Engine > --- PROPULSION (2) --- Aluminum Leg Wheel > --- UTILITY (2) ------ Large Storage Unit > --- WEAPON (2) ------- Beamcaster Light Assault Rifle > --- INVENTORY (15) --- Light Ion Engine Carbon-fiber Leg Improved Titanium Leg Compact Wheel Compact Wheel Improved Terrain Scanner Force Booster Propulsion Shielding Beamcaster AWS/Thermal Light Assault Rifle Light Cannon Hammer Peak State ------------ > --- POWER ------------ Light Ion Engine > --- PROPULSION ------- Aluminum Leg Wheel > --- UTILITY ---------- Large Storage Unit Light Armor Plating > --- WEAPON ----------- Beamcaster Light Assault Rifle > --- INVENTORY -------- Light Ion Engine Carbon-fiber Leg Compact Wheel Compact Wheel Improved Terrain Scanner Propulsion Shielding Beamcaster AWS/Thermal Light Assault Rifle Light Cannon Hammer Deploy-a-Sentry [Rating: 15] Favorites ----------- Power Light Ion Engine Engine Light Ion Engine Propulsion Wheel Treads Light Treads Leg Aluminum Leg Wheel Wheel Utility Large Storage Unit Device Improved Terrain Scanner Storage Large Storage Unit Protection Light Armor Plating Weapon Light Assault Rifle Energy Gun Beamcaster Ballistic Gun Light Assault Rifle Special Weapon Mining Laser Build | -11 -10 -10 -10 -9 ------- Run | Scr Mat Min Exi Min Slots Evolved . | . . . . . Power . | . . . . . Propulsion . | . . . . . Utility . | . . . . . Weapon . | . . . . . Parts Attached 30 | 8 19 1 . 2 Power 3 | 2 1 . . . Engine 3 | 2 1 . . . Core . | . . . . . Reactor . | . . . . . Propulsion 7 | 2 5 . . . Treads 2 | . 2 . . . Leg 1 | . 1 . . . Wheel 4 | 2 2 . . . Hover . | . . . . . Flight . | . . . . . Utility 5 | 2 3 . . . Device 1 | 1 . . . . Storage 3 | 1 2 . . . Processor . | . . . . . Hackware . | . . . . . Protection 1 | . 1 . . . Artifact . | . . . . . Weapon 15 | 2 10 1 . 2 Energy Gun 2 | . . . . 2 Energy Cannon . | . . . . . Ballistic Gun 10 | 2 7 1 . . Ballistic Cannon . | . . . . . Launcher . | . . . . . Special Weapon 3 | . 3 . . . Impact Weapon . | . . . . . Slashing Weapon . | . . . . . Piercing Weapon . | . . . . . Special Melee Weapon . | . . . . . Unidentified Prototypes . | . . . . . Parts Lost 9 | . 7 . . 2 Power 1 | . 1 . . . Propulsion 2 | . 2 . . . Utility 2 | . 1 . . 1 Weapon 4 | . 3 . . 1 Highest Loss Streak 4 | . 4 . . 1 To Critical Strikes . | . . . . . Average Slot Usage (%) 95 | . 96 99 100 86 Engine 13 | . 12 14 14 14 Treads 4 | . 16 . . . Leg 10 | . 2 14 14 14 Wheel 12 | . 8 14 14 14 Device 1 | . 5 . . . Storage 14 | . 16 14 14 14 Protection 9 | . 4 14 14 7 Energy Gun 1 | . . . . 7 Ballistic Gun 23 | . 24 27 28 14 Special Weapon 1 | . 3 . . . Naked Turns . | . . . . . Heaviest Build 32 | 12 28 28 28 32 Greatest Support 40 | 20 40 10 10 10 Greatest Overweight (x) 3 | 1 2 2 2 3 Average Overweight (x) 1 | . . 2 2 2 Largest Inventory Capacity 15 | 8 15 15 15 15 Average Capacity 14 | 7 14 15 15 15 Most Carried 15 | 8 11 14 15 15 Average Carried 11 | 3 8 12 14 14 Final Capacity 15 | 8 15 15 15 15 Final Carried 15 | 8 11 14 15 14 Class Distribution -------------------- 84% | Mutant 15% | Scavenger-Mutant Dominant Class ---------------- Mutant | -10/Materials Mutant | -10/Mines Mutant | -10/Exiles Scavenger-Mutant | -9/Mines Resources | -11 -10 -10 -10 -9 ----------- Run | Scr Mat Min Exi Min Matter Collected 670 | 330 283 21 . 36 Remotely . | . . . . . Salvage Created 742 | 143 515 66 . 18 Parts 59 | 14 36 7 . 2 Haulers Intercepted 1 | . 1 . . . Recyclers Shooed . | . . . . . Parts Field Recycled . | . . . . . Retrieved Matter . | . . . . . Parts Self-Destructed . | . . . . . Prevented . | . . . . . Kills | -11 -10 -10 -10 -9 ------- Run | Scr Mat Min Exi Min Combat Hostiles Destroyed 16 | . 15 . . 1 Guns 16 | . 15 . . 1 Classes Destroyed 6 | 3 3 . . . Worker 2 | 2 . . . . Tunneler 4 | 3 . 1 . . Hauler 1 | . 1 . . . Recycler 2 | 1 . 1 . . Swarmer 7 | . 6 . . 1 Grunt 9 | . 9 . . . Best Kill Streak 3 | 3 3 1 . 1 Combat Bots Only 3 | . 3 . . 1 Max Kills in Single Turn 1 | 1 1 1 . 1 Gunslinging . | . . . . . Exploded . | . . . . . Melee . | . . . . . Uniques/NPCs Destroyed . | . . . . . Combat | -11 -10 -10 -10 -9 -------- Run | Scr Mat Min Exi Min Damage Taken 1142 | . 949 16 . 177 Core 278 | . 200 . . 78 Absorbed by Shields . | . . . . . Core Remaining (%) 100 | 100 . . . . Volleys Fired 92 | 16 63 5 . 8 Largest 2 | 2 2 2 . 2 Hottest 100 | 40 100 40 . 40 Shots Fired 168 | 32 115 10 . 11 Gun 161 | 32 108 10 . 11 Cannon . | . . . . . Launcher . | . . . . . Special 7 | . 7 . . . Kinetic 161 | 32 108 10 . 11 Thermal 7 | . 7 . . . Explosive . | . . . . . Electromagnetic . | . . . . . Robot Hit Streak 9 | 9 9 4 . 5 Robot Miss Streak 3 | 2 2 2 . 3 Penetration Max . | . . . . . Secondary Targets 1 | . 1 . . . Max Gunslinging Chain 1 | . 1 . . . Shots Hit Robots 107 | 21 73 6 . 7 Core Hits 54 | 14 34 4 . 2 Critical Kills . | . . . . . Critical Parts Destroyed . | . . . . . Critical Strikes . | . . . . . Melee Attacks . | . . . . . Impact . | . . . . . Slashing . | . . . . . Piercing . | . . . . . Sneak Attacks . | . . . . . Combat Hostiles . | . . . . . Follow-up Attacks . | . . . . . Damage Inflicted 857 | 184 573 47 . 53 Guns 857 | 184 573 47 . 53 Cannons . | . . . . . Explosions . | . . . . . Melee . | . . . . . Ramming . | . . . . . Kinetic 857 | 184 573 47 . 53 Thermal . | . . . . . Explosive . | . . . . . Electromagnetic . | . . . . . Impact . | . . . . . Slashing . | . . . . . Piercing . | . . . . . Highest Corruption 1 | . . . . 1 Average Corruption 1 | . . . . 1 Corruption Purged . | . . . . . Corruption Blocked . | . . . . . Effects 5 | . . . . 5 Message Errors 2 | . . . . 2 Matter Fused 1 | . . . . 1 Heat Flow Errors 1 | . . . . 1 Data Loss (minor) 1 | . . . . 1 Overload Shots . | . . . . . Overflow Damage . | . . . . . Projectiles . | . . . . . Explosions . | . . . . . Melee . | . . . . . Knockbacks . | . . . . . Impact . | . . . . . Kinetic . | . . . . . Secondary . | . . . . . Self-Inflicted Damage . | . . . . . Shots . | . . . . . Rammed . | . . . . . Targets Rammed . | . . . . . Kicked . | . . . . . Crushed . | . . . . . Highest Temperature 219 | . 62 12 . 219 Average Temperature 24 | . 18 5 . 61 Received Heat Transfer 477 | . 459 9 . 9 Siege Activations . | . . . . . Robots Corrupted . | . . . . . Combat Hostiles . | . . . . . Parts Fried . | . . . . . Impact Corruptions . | . . . . . Robots Melted . | . . . . . Combat Hostiles . | . . . . . Parts Melted . | . . . . . Heat Transferred . | . . . . . Parts Sabotaged . | . . . . . Parts Stolen . | . . . . . Parts Stripped . | . . . . . Power Chain Reactions . | . . . . . Missiles Intercepted . | . . . . . Alert | -11 -10 -10 -10 -9 ------- Run | Scr Mat Min Exi Min Peak Influence 297 | 30 297 103 . 121 Initial 27 | . 19 27 . . Average 50 | 9 89 23 . 48 Maximum Alert Level 1 | . 1 . . . Low Security (%) 94 | 100 83 100 . 100 Level 1 5 | . 16 . . . Level 2 . | . . . . . Level 3 . | . . . . . Level 4 . | . . . . . Level 5 . | . . . . . High Security . | . . . . . Max Security . | . . . . . Squads Dispatched 4 | . 4 . . . Investigation 3 | . 3 . . . Extermination . | . . . . . Reinforcement 1 | . 1 . . . Assault . | . . . . . Garrison . | . . . . . Intercept . | . . . . . Searches Triggered . | . . . . . Construction Impeded . | . . . . . Haulers Reinforced . | . . . . . Active Scanning Responses . | . . . . . Cargo Convoy Interrupts . | . . . . . Stealth | -11 -10 -10 -10 -9 --------- Run | Scr Mat Min Exi Min Distress Signals 3 | . 3 . . . Communications Jammed . | . . . . . Distress Signals . | . . . . . Times Spotted 38 | . 30 . . 8 Peak Tracking Total 6 | . 6 . . 3 Tactical Retreats . | . . . . . Traps | -11 -10 -10 -10 -9 ------- Run | Scr Mat Min Exi Min Traps Triggered 5 | . 3 . . 2 Indirectly . | . . . . . Trap Hack Attempts . | . . . . . Triggered . | . . . . . Disarmed . | . . . . . Reprogrammed . | . . . . . Reused . | . . . . . Traps Extracted . | . . . . . Installed . | . . . . . Triggered . | . . . . . Machines | -11 -10 -10 -10 -9 ---------- Run | Scr Mat Min Exi Min Machines Disabled . | . . . . . Max in Single Turn . | . . . . . Machines Sabotaged . | . . . . . Garrisons Compromised . | . . . . . Overloaded Fab Kills . | . . . . . Hacking | -11 -10 -10 -10 -9 --------- Run | Scr Mat Min Exi Min Machines Accessed 8 | . 6 . 1 1 Terminals 6 | . 6 . . . Fabricators . | . . . . . Repair Stations . | . . . . . Recycling Units . | . . . . . Scanalyzers . | . . . . . Garrison Access . | . . . . . Total Hacks 26 | . 24 . 1 1 Successful 15 | . 13 . 1 1 Failed 11 | . 11 . . . Catastrophic 1 | . 1 . . . Database Lockouts . | . . . . . Manual 24 | . 23 . 1 . Terminals 24 | . 24 . . . Fabricators . | . . . . . Repair Stations . | . . . . . Recycling Units . | . . . . . Scanalyzers . | . . . . . Garrison Access . | . . . . . Terminal Hacks 8 | . 6 . 1 1 Robot Analysis 1 | . 1 . . . Open Door 1 | . . . . 1 Branch Access Points 1 | . 1 . . . Terminal Index 1 | . 1 . . . Unreport Threat 1 | . 1 . . . Patrol Status 1 | . 1 . . . Registered Components 1 | . 1 . . . EX-Prototype ID Bank 1 | . . . 1 . Fabricator Hacks . | . . . . . Repair Station Hacks . | . . . . . Recycling Unit Hacks . | . . . . . Scanalyzer . | . . . . . Garrison Access Hacks . | . . . . . Unauthorized Hacks 7 | . 7 . . . Terminals 7 | . 7 . . . Botnet 6 | . 6 . . . Operators 1 | . 1 . . . Fabricators . | . . . . . Repair Stations . | . . . . . Recycling Units . | . . . . . Scanalyzers . | . . . . . Garrison Access . | . . . . . Data Cores Recovered . | . . . . . Used . | . . . . . Hacking Detections 4 | . 4 . . . Full Trace Events 2 | . 2 . . . Feedback Events . | . . . . . Feedback Blocked . | . . . . . Robot Schematics Acquired . | . . . . . Robots Built . | . . . . . Authchips . | . . . . . Time . | . . . . . Total Robot Build Rating . | . . . . . Part Schematics Acquired . | . . . . . Parts Built . | . . . . . Authchips . | . . . . . Time . | . . . . . Total Part Build Rating . | . . . . . Parts Repaired . | . . . . . Time . | . . . . . Parts Recycled . | . . . . . Recycled Matter . | . . . . . Retrieved Matter . | . . . . . Retrieved Components . | . . . . . Parts Scanalyzed . | . . . . . Part Schematics Acquired . | . . . . . Parts Damaged . | . . . . . Bothacking | -11 -10 -10 -10 -9 ------------ Run | Scr Mat Min Exi Min Used RIF Installer . | . . . . . Robots Hacked . | . . . . . Non-combat . | . . . . . Combat . | . . . . . Robot Hacks Applied . | . . . . . Relay Couplers Released . | . . . . . Fabnet Peak Effective % . | . . . . . Robots Rewired . | . . . . . Allies Hacked . | . . . . . Hacks Repelled . | . . . . . Allies | -11 -10 -10 -10 -9 -------- Run | Scr Mat Min Exi Min Total Allies 6 | . . 5 . 1 Largest Group 5 | . . 5 . 1 Highest-Rated Group 85 | . . 85 . 31 Highest-Rated Ally 31 | . . 31 . 31 Total Orders . | . . . . . Ally Attacks 18 | . . 8 . 10 Total Damage 448 | . . 84 . 364 Kills 7 | . . 3 . 4 Allies Corrupted . | . . . . . Allies Melted . | . . . . . Turrets Deployed 3 | . . . . 3 Intel | -11 -10 -10 -10 -9 ------- Run | Scr Mat Min Exi Min Robot Analysis Total 1 | . 1 . . . Derelict Logs Recovered 2 | . . 2 . . Drone Launches . | . . . . . Drone Recoveries . | . . . . . Exploration | -11 -10 -10 -10 -9 ------------- Run | Scr Mat Min Exi Min Turns Passed 2371 | 124 678 734 305 530 Spaces Moved 1707 | 75 354 627 272 379 Core 7 | 7 . . . . Treads 134 | . 134 . . . Legs 40 | . . . . 40 Wheels 1526 | 68 220 627 272 339 Hover . | . . . . . Flight . | . . . . . Fastest Speed 50 | 50 80 110 110 110 Average Speed 115 | 79 123 110 110 127 Slowest Speed 260 | 100 240 110 110 260 Overloaded Moves . | . . . . . Propulsion Burnouts . | . . . . . Robots Hopped 3 | . . . . 3 Cave-ins Triggered . | . . . . . Exploration Rate (%) 61 | 5 61 99 68 73 Regions Visited 4 Branch Regions 3 Pre-discovered Areas 1 | . . . . 1 Known Exits Taken 1 | . 1 . . . Unknown Exits Taken 3 | 1 . 1 1 . Scrap Searched 2 | . . 2 . . Spaces Dug 5 | . 5 . . . Terrain Destroyed 7 | . 7 . . . Melee . | . . . . . Projectile 7 | . 7 . . . AOE . | . . . . . Terrain Rammed . | . . . . . Walls Destroyed . | . . . . . Machines Disabled . | . . . . . Actions | -11 -10 -10 -10 -9 --------- Run | Scr Mat Min Exi Min Total 1954 | 111 482 663 279 419 Wait 85 | . 40 27 . 18 Move 1697 | 74 353 626 271 373 Hop 3 | . . . . 3 Pick Up 31 | 11 5 4 4 7 Fast Attach 10 | 6 2 . . 2 Attach 7 | 1 5 1 . . Detach 1 | . 1 . . . Swap 13 | 1 12 . . . Drop 15 | 2 1 . 4 8 Fire 92 | 16 63 5 . 8 Melee . | . . . . . Ram . | . . . . . Kick . | . . . . . Crush . | . . . . . Escape Stasis . | . . . . . Rewire . | . . . . . Trap . | . . . . . Miscellaneous . | . . . . . Route ------- -11/Scrapyard -10/Materials (discovered 3 exits: [*Mat] / *Min x2) -10/Mines (discovered 3 exits: [*Mat x2] / *Exi) -10/Exiles -9/Mines (discovered 1 exit: [*Mat]) History --------- Turn | Location | Event 21 | -11/Scrapyard | Discovered new exit (range 16) 125 | -11/Scrapyard | Entered Materials 307 | -10/Materials | Build established: Mutant 337 | -10/Materials | Discovered new exit (range 7) 514 | -10/Materials | Core integrity fell below 50% 606 | -10/Materials | Identified exit to Mines 611 | -10/Materials | Discovered new exit (range 9) 707 | -10/Materials | Lost 4 parts (2n2w) 803 | -10/Materials | Entered Mines 805 | -10/Mines | Assisted by bots powering up and referring to "LRC-V3" 864 | -10/Mines | Deemed a non-threat by the Exiles lab entrance 865 | -10/Mines | Discovered new exit (range 5) 892 | -10/Mines | Met a Derelict bent on vengeance 1158 | -10/Mines | Learned Materials security intel 1175 | -10/Mines | Learned Materials security intel 1215 | -10/Mines | Discovered new exit (range 10) 1220 | -10/Mines | Discovered new exit (range 16) 1537 | -10/Mines | Entered Exiles 1568 | -10/Exiles | Met 8R-AWN 1584 | -10/Exiles | Met EX-HEX 1623 | -10/Exiles | Met EX-BIN 1636 | -10/Exiles | Aligned with FarCom system 1638 | -10/Exiles | Given EX-Vault access code 1665 | -10/Exiles | Opened EX-Vault 1672 | -10/Exiles | Found Prototype Energy Gun 1678 | -10/Exiles | Identified AWS/Thermal 1680 | -10/Exiles | Found Deploy-a-Sentry 1682 | -10/Exiles | Found Deploy-a-Sentry 1684 | -10/Exiles | Found Deploy-a-Sentry 1710 | -10/Exiles | Warned to stay clear of 0b10 Research branches 1747 | -10/Exiles | Met EX-DEC 1829 | -10/Exiles | Discovered new exit (range 14) 1842 | -10/Exiles | Stole two prototypes: AWS/Thermal, Deploy-a-Sentry 1842 | -10/Exiles | Entered Mines 1854 | -9/Mines | Core integrity fell below 20% 1859 | -9/Mines | Escorted by a lone wolf Derelict 1879 | -9/Mines | Learned location of Storage (-8) 1969 | -9/Mines | DAS Turret deployed 2049 | -9/Mines | DAS Turret deployed 2110 | -9/Mines | Met a Derelict who couldn't figure out how to use a Trap Extractor 2357 | -9/Mines | Assembled infested the area 2361 | -9/Mines | Build established: Scavenger-Mutant 2369 | -9/Mines | DAS Turret deployed 2369 | -9/Mines | Discovered new exit (range 6) 2372 | -9/Mines | Destroyed by D-53 Grenadier with Mini Grenade Launcher Last Messages --------------- 02291_ K-01 Serf collects debris. 02294_ T-07 Excavator is excavating. 02296_ U-05 Engineer lays Concrete. 02296_ K-01 Serf collects debris. 02297_ U-05 Engineer lays Concrete. 02300_ K-01 Serf collects debris. 02316_ System corrupted: Component data lost. 02316_ T-07 Excavator is excavating. 02317_ K-01 Serf collects debris. 02336_ RU&7#4GLCAI QS5QV0U%HRYU=SAQ 02340_ K-01 Serf collects debris. 02357_ ALERT: Infestation in the mines, dispatching Demolisher response squad. 02367_ K-01 Serf collects debris. 02368_ Dropped Deploy-a-Sentry. 02369_ DAS Turret deployed. 02369_ EXIT=FOUND 02370_ K-01 Serf collects debris. 02370_ as-12930 destroyed. 02371_ K-01 Serf collects debris. Map ----- +----------------------------------------------------+ | ????????????###?# #????## #### ## !# | | ???????????## ## #????## #??# t## ### | | ???????????# ##???# ##??# #####?# | | ???????????# #???## ##???# #?????# | | ???????????## t ##???###????# #?????# | | ????????????## ##?????????# ####### | | ?????????????#### %%##????????# # ###### | | ????????????????# ==%##???????#t%###### # # | | ???????????????## = #???????#[!#????# #### # | | ???????????????# #???????#%%#????## ##??# # | | ???????????????# #########%!####??# #??## | | ???????????????## ### %%*% #??# #?## | | ????????????????########?# [%% #??# #?# | | ?????????????????????????# """ """ #### #?# | | ?????????????????????????# """ """ #?# | | ?????????????????????????# """ """k ######?# | | ????????????????????????? #??????## # | | ?????????????????????????? #???????#### | | ?????????????????????????# #?????????## | | ??????????????????????????#############????????## | | ???????????????????????####???????????????????## | | ??????????????????????## ##??????????????????# | | ??????????????????????# #??????????????????# | | ?????????????????????## ##?????#####???????## | | ????????????????????## ##???## ##???????### | | ??????????????????### @ ##??# #?????????# | | ??????????????????# t #?## #?????????? | | ?????????????????# k ## #?# #?????????? | | ???????????? %< ?# ##?# #?????????? | | ???????# = * ??# ###??# #??????#### | | ???????# % ???# #????## ######## # | | ???????#???? d ????# ###???## ## ## | | ???????????? ???## ##???## | | ????????????? ????# ###### | | ????????????? ?????# | | ?????????????? ??????# | | ?????????????? ??????# ##### ## | | ????????????????#???????## #??## #### | | ?????????????????????????## ##??# #######??## | | ??????????????????????????####???# ##?????????# | | ?????????????????????????????????# #??????????# | | ?????????????????????????????????# ##???######## | | ?????????????????????????????????##?????# | | ?????????????????????????????????????????# | | ?????????????????????????????????????????# ### | | ?????????????????????????????????????????#??## | | ????????????????????????????????????????????# | | ????????????????????????????????????????????# | | ????????????????????????????????????????????# | | ????????????????????????????????????????????# | +----------------------------------------------------+ Best States ------------- Heat Dissipation 25 Energy Generation 10 Energy Capacity 250 Matter Stores 350 Matter Capacity 350 Sight Range 16 Terrain Scan Range 16 Terrain Scan Density 10 Armor Coverage 150 Evasion (%) 44 Recoil Reduction 2 Item Schematics ----------------- None Robot Schematics ------------------ None Fabricated ------------ Nothing Alien Tech Used ----------------- None Achievements -------------- None Challenges ------------ None Game ------ Seed ThunderCouplerMachine Manual? 0 Play Time 00:24:49 Cumulative 89.4 hours Start 2022.07.23 @ 15:04:05 End 2022.07.23 @ 18:29:10 Sessions 5 Manual Loads 0 Difficulty Rogue Special Mode None Game No. 57 Rogue 56 Adventurer 0 Explorer 1 Win Type - Total 0 Types 0/0/0/0/0/0/0/0/0 Lore% 22 Gallery% 36 Achievement% 26 Wizard Run 0 Options --------- ASCII 0 Keyboard 0 Movement Mouse Keybinds 0 Fullscreen 1 Font 36/Terminus Map View 76x50 Tactical HUD 1 Map Filters NONE Filters NONE Steam 1 RUN: 05c6e03a-863c-43e6-bfdf-65370aff7df9